{"text_format":"3","workbook":"xlsx","n_sheets":1,"sheets":["7-11"],"read":"whole","date_system":"1900"}

{"sheet":"7-11","index":0,"n_rows":53,"n_cols":20,"rows_kept":53}
["№","Код участника","Название ОУ(полное)","СНИЛС","Фамилия","Имя","Отчество","Пол","Дата рождения","Участник с ОВЗ","Класс","Класс участия","Балл","Добавлено баллов по итогам апелляции","Итоговый балл","Макс. балл","Статус","Призер республиканского / регионального этапа прошлого года","Учитель","Место работы учителя (полное)"]
[1,"454004_16398635215_23","Муниципальное бюджетное общеобразовательное учреждение \"Евлаштауская средняя общеобразовательная школа  Сабинского муниципального района Республики Татарстан\"",16398635215,"Ярмиева","Фируза","Рифнуровна","ж","2011-02-08","нет",7,7,25,null,{"$f":"M2","v":25},50,"призер","нет","Бектина Галина Юрьевна","Муниципальное бюджетное общеобразовательное учреждение \"Евлаштауская средняя общеобразовательная школа  Сабинского муниципального района Республики Татарстан\""]
[2,"454022_16830506062_23","Муниципальное бюджетное общеобразовательное учреждение \"Большеарташская основная общеобразовательная школа  Сабинского муниципального района Республики Татарстан\"",16830506062,"Гаянов","Карим","Ирекович","м","2011-09-30","нет",7,7,12,null,{"$f":"M3","v":12},50,"участник","нет","Сафиева Рузалия Хамитовна","Муниципальное бюджетное общеобразовательное учреждение \"Большеарташская основная общеобразовательная школа  Сабинского муниципального района Республики Татарстан\""]
[3,"454007_17113415122_23","Муниципальное бюджетное общеобразовательное учреждение \"Шикшинская основная общеобразовательная школа  Сабинского муниципального района Республики Татарстан\"",17113415122,"Хусаенова","Алия","Рамазановна","ж","2012-03-30","нет",7,7,21,null,21,50,"участник","нет","Амирова Лилия Саубановна","Муниципальное бюджетное общеобразовательное учреждение \"Шикшинская основная общеобразовательная школа  Сабинского муниципального района Республики Татарстан\""]
[4,"454020_16845533500_23","Муниципальное бюджетное общеобразовательное учреждение \"Большекибячинская средняя общеобразовательная школа Сабинского муниципального района Республики Татарстан\"",16845533500,"Хайруллина","Азалия","Рамилевна","ж","2011-09-27","нет",7,7,11,null,11,50,"участник","нет","Ибушева Фирая Наиловна","Муниципальное бюджетное общеобразовательное учреждение \"Большекибячинская средняя общеобразовательная школа Сабинского муниципального района Республики Татарстан\""]
[5,"454014_16305318437_23","муниципальное бюджетное общеобразовательное учреждение \"Кильдебякская средняя общеобразовательная школа Сабинского муниципального района Республики Татарстан\"",16305318437,"Тимергалиева","Лиана","Альбертовна","ж","2010-11-20","нет",7,7,17,null,17,50,"участник","нет","Кашипова Йолдыз Мударисовна","муниципальное бюджетное общеобразовательное учреждение \"Кильдебякская средняя общеобразовательная школа Сабинского муниципального района Республики Татарстан\""]
[6,"454009_16287548909_23","Муниципальное бюджетное общеобразовательное учреждение \"Сатышевская средняя общеобразовательная школа Сабинского муниципального района Республики Татарстан им. Ш.З.Зиннурова\"",16287548909,"Шарифуллин","Ансар","Айдарович","м","2010-11-01","нет",7,7,20,null,20,50,"участник","нет","Хасанова Венера Ризвановна","Муниципальное бюджетное общеобразовательное учреждение \"Сатышевская средняя общеобразовательная школа Сабинского муниципального района Республики Татарстан им. Ш.З.Зиннурова\""]
[7,"451002_16825902493_23","Муниципальное бюджетное общеобразовательное учреждение «Центр образования «ОНИКС» для одаренных детей» Сабинского муниципального района Республики Татарстан","168-259-024 93","Халилова","Зульфина","Ленаровна","ж","2011-09-10","нет",7,7,38,null,38,50,"победитель","нет","Хазиева Альфира Рифкатовна","Муниципальное бюджетное общеобразовательное учреждение «Центр образования «ОНИКС» для одаренных детей» Сабинского муниципального района Республики Татарстан"]
[8,"451001_16854871622_23","Муниципальное бюджетное общеобразовательное учреждение «Гимназия п.г.т. Богатые Сабы Сабинского муниципального района Республики Татарстан»",16854871622,"Аглиуллина","Самина","Фаннуровна","ж","2011-09-30","нет",7,7,16,null,16,50,"участник","нет","Кириллова Разина Назировна","Муниципальное бюджетное общеобразовательное учреждение «Гимназия п.г.т. Богатые Сабы Сабинского муниципального района Республики Татарстан»"]
[9,"451001_16266113857_23","Муниципальное бюджетное общеобразовательное учреждение «Гимназия п.г.т. Богатые Сабы Сабинского муниципального района Республики Татарстан»",16266113857,"Хабибуллин","Эмиль","Данилевич","м","2010-11-01","нет",7,7,13,null,13,50,"участник","нет","Кириллова Разина Назировна","Муниципальное бюджетное общеобразовательное учреждение «Гимназия п.г.т. Богатые Сабы Сабинского муниципального района Республики Татарстан»"]
[10,"454016_16360921158_23","Государственное бюджетное общеобразовательное учреждение «Икшурминская кадетская школа-интернат имени Байкиева К.С.»",16360921158,"Шавалиев","Фанияр","Нурфаязович","м","2011-01-14","нет",7,7,13,null,13,50,"участник","нет","Хуснутдинова Гулия Фаридовна","Государственное бюджетное общеобразовательное учреждение «Икшурминская кадетская школа-интернат имени Байкиева К.С.»"]
[11,"454017_16365285181_23","Муниципальное бюджетное общеобразовательное учреждение \"Изминская средняя общеобразовательная школа Сабинского муниципального района Республики Татарстан\"","163-652-851 81","Арстамбеков","Ильяс","Мансурович","м","2011-01-09","нет",7,7,33,null,33,50,"призер","нет","Арстамбекова Гульфия Зуфаровна","Муниципальное бюджетное общеобразовательное учреждение \"Изминская средняя общеобразовательная школа Сабинского муниципального района Республики Татарстан\""]
[12,"452003_16568529616_23","Муниципальное бюджетное общеобразовательное учреждение\"Шеморданский лицей \"Рост\"Сабинского муниципального района Республики Татарстан\"",16568529616,"Байкова","Азалия","Эдуардовна","ж","2011-05-01","нет",7,7,17,null,{"$f":"M13","v":17},50,"участник","нет","Шайхиева Жанна Ильдусовна","Муниципальное бюджетное общеобразовательное учреждение\"Шеморданский лицей \"Рост\"Сабинского муниципального района Республики Татарстан\""]
[13,"452003_16422832051_23","Муниципальное бюджетное общеобразовательное учреждение\"Шеморданский лицей \"Рост\"Сабинского муниципального района Республики Татарстан\"",16422832051,"Хуснутдинов","Булат","Ленарович","м","2011-02-28","нет",7,7,20,null,{"$f":"M14","v":20},50,"участник","нет","Шайхиева Жанна Ильдусовна","Муниципальное бюджетное общеобразовательное учреждение\"Шеморданский лицей \"Рост\"Сабинского муниципального района Республики Татарстан\""]
[14,"454006_15689410405_23","Муниципальное бюджетное общеобразовательное учреждение \"Юлбатская основная общеобразовательная школа  Сабинского муниципального района Республики Татарстан\"",15689410405,"Фатхуллина","Зухра","Габдулловна","ж","2009-12-04",null,8,8,13,null,{"$f":"M15","v":13},53,"участник","нет","Хазиева Альфира Рифкатовна","Муниципальное бюджетное общеобразовательное учреждение \"Юлбатская основная общеобразовательная школа Сабинского муниципального района Республики Татарстан\""]
[15,"454022_17463504980_23","Муниципальное бюджетное общеобразовательное учреждение \"Большеарташская основная общеобразовательная школа  Сабинского муниципального района Республики Татарстан\"",17463504980,"Гордеева","Юлиана","Денисовна","ж","2010-07-29","нет",8,8,21,null,{"$f":"M16","v":21},53,"участник","нет","Сафиева Рузалия Хамитовна","Муниципальное бюджетное общеобразовательное учреждение \"Большеарташская основная общеобразовательная школа  Сабинского муниципального района Республики Татарстан\""]
[16,"454007_17064061646_23","Муниципальное бюджетное общеобразовательное учреждение \"Шикшинская основная общеобразовательная школа  Сабинского муниципального района Республики Татарстан\"",17064061646,"Мубаракова","Эльвина","Рузалевна","ж","2010-07-28","нет",8,8,20,null,{"$f":"M17","v":20},53,"участник","да","Амирова Лилия Саубановна","Муниципальное бюджетное общеобразовательное учреждение \"Шикшинская основная общеобразовательная школа  Сабинского муниципального района Республики Татарстан\""]
[17,"454020_15725966908_23","Муниципальное бюджетное общеобразовательное учреждение \"Большекибячинская средняя общеобразовательная школа Сабинского муниципального района Республики Татарстан\"",15725966908,"Хуснутдинова","Гулина","Алмазовна","ж","2010-01-16","нет",8,8,22,null,{"$f":"M18","v":22},53,"участник","нет","Ибушева Фирая Наиловна","Муниципальное бюджетное общеобразовательное учреждение \"Большекибячинская средняя общеобразовательная школа Сабинского муниципального района Республики Татарстан\""]
[18,"454011_15835142875_23","Муниципальное бюджетное общеобразовательное учреждение \"Нижнешитцинская основная общеобразовательная школа  Сабинского муниципального района Республики Татарстан\"",15835142875,"Хабибрахманова","Марьям","Анасовна","ж","2010-03-17","нет",8,8,31,null,31,53,"призер","нет","Салихова Мансура Назиповна","Муниципальное бюджетное общеобразовательное учреждение \"Нижнешитцинская основная общеобразовательная школа  Сабинского муниципального района Республики Татарстан\""]
[19,"454021_15816680391_23","Муниципальное бюджетное общеобразовательное учреждение \"Большешинарская  средняя общеобразовательная школа имени А.А. Ахунзянова  Сабинского муниципального района Республики Татарстан\"",15816680391,"Мухутдинов","Айзат","Фанзирович","м","2010-03-03","нет",8,8,22,null,22,53,"участник","нет","Мухутдинова Алия Рафаэлевна","Муниципальное бюджетное общеобразовательное учреждение \"Большешинарская  средняя общеобразовательная школа имени А.А. Ахунзянова  Сабинского муниципального района Республики Татарстан\""]
[20,"454009_15730403845_23","Муниципальное бюджетное общеобразовательное учреждение \"Сатышевская средняя общеобразовательная школа Сабинского муниципального района Республики Татарстан им. Ш.З.Зиннурова\"",15730403845,"Сабиров","Алмаз","Маратович","м","2010-01-15","нет",8,8,23,null,23,53,"участник","нет","Хасанова Венера Ризвановна","Муниципальное бюджетное общеобразовательное учреждение \"Сатышевская средняя общеобразовательная школа Сабинского муниципального района Республики Татарстан им. Ш.З.Зиннурова\""]
[21,"451002_15813065659_23","Муниципальное бюджетное общеобразовательное учреждение «Центр образования «ОНИКС» для одаренных детей» Сабинского муниципального района Республики Татарстан","158-130-656 59","Загидуллин","Раяз","Флюзович","м","08.03.2010\n","нет",8,8,28,null,28,53,"участник","нет","Хазиева Альфира Рифкатовна","Муниципальное бюджетное общеобразовательное учреждение «Центр образования «ОНИКС» для одаренных детей» Сабинского муниципального района Республики Татарстан"]
[22,"451001_15756198710_23","МБОУ \"Гимназия\" п.г.т. Богатые Сабы",15756198710,"Салихова","Марьям","Расилевна","ж","2010-01-19","нет",8,8,16,null,16,53,"участник","нет","Рахимова Миляуша Мансуровна","Муниципальное бюджетное общеобразовательное учреждение «Гимназия п.г.т. Богатые Сабы Сабинского муниципального района Республики Татарстан»"]
[23,"451001_15875250296_23","МБОУ \"Гимназия\" п.г.т. Богатые Сабы",15875250296,"Ханафиева","Гульсина","Марселевна","ж","2010-04-12","нет",8,8,22,null,22,53,"участник","нет","Рахимова Миляуша Мансуровна","Муниципальное бюджетное общеобразовательное учреждение «Гимназия п.г.т. Богатые Сабы Сабинского муниципального района Республики Татарстан»"]
[24,"454017_15689136613_23","Муниципальное бюджетное общеобразовательное учреждение \"Изминская средняя общеобразовательная школа Сабинского муниципального района Республики Татарстан\"","156-891-366 13","Зиганшина","Зарина","Ирековна","ж","2009-12-04","нет",8,8,22,null,22,53,"участник","нет","Каримова Гульзира Дамировна","Муниципальное бюджетное общеобразовательное учреждение \"Изминская средняя общеобразовательная школа Сабинского муниципального района Республики Татарстан\""]
[25,"452003_15835142976_23","Муниципальное бюджетное общеобразовательное учреждение\"Шеморданский лицей \"Рост\"Сабинского муниципального района Республики Татарстан\"",15835142976,"Гараева","Аделя","Радиковна","ж","2010-03-05","нет",8,8,33,null,33,53,"победитель","нет","Шайхиева Жанна Ильдусовна","Муниципальное бюджетное общеобразовательное учреждение\"Шеморданский лицей \"Рост\"Сабинского муниципального района Республики Татарстан\""]
[26,"452003_16228890283_23","Муниципальное бюджетное общеобразовательное учреждение\"Шеморданский лицей \"Рост\"Сабинского муниципального района Республики Татарстан\"",16228890283,"Волков","Егор","Дмитриевич","м","2010-09-25","нет",8,8,30,null,30,53,"призер","нет","Шамгулова Алсу Айдаровна","Муниципальное бюджетное общеобразовательное учреждение\"Шеморданский лицей \"Рост\"Сабинского муниципального района Республики Татарстан\""]
[27,"454022_15465662790_23","Муниципальное бюджетное общеобразовательное учреждение \"Большеарташская основная общеобразовательная школа  Сабинского муниципального района Республики Татарстан\"",15465662790,"Хузина","Язгуль","Ильсуровна","ж","2009-04-27","нет",9,9,24,null,{"$f":"M28","v":24},68,"участник","нет","Сафиева Рузалия Хамитовна","Муниципальное бюджетное общеобразовательное учреждение \"Большеарташская основная общеобразовательная школа  Сабинского муниципального района Республики Татарстан\""]
[28,"454010_15528675292_23","Муниципальное бюджетное общеобразовательное учреждение \"Мичанская основная общеобразовательная школа  Сабинского муниципального района Республики Татарстан\"",15528675292,"Ибрагимова","Камиля","Рамилевна","ж","2009-07-10","нет",9,9,49,null,{"$f":"M29","v":49},68,"победитель","нет","Ахмадиева Алсу Равилевна","Муниципальное бюджетное общеобразовательное учреждение \"Мичанская основная общеобразовательная школа Сабинского муниципального района Республики Татарстан\""]
[29,"454007_15584239288_23","Муниципальное бюджетное общеобразовательное учреждение \"Шикшинская основная общеобразовательная школа  Сабинского муниципального района Республики Татарстан\"",15584239288,"Зайнагиева","Азалия","Наилевна","ж","2009-08-19","нет",9,9,16,null,{"$f":"M30","v":16},68,"участник","да","Амирова Лилия Саубановна","Муниципальное бюджетное общеобразовательное учреждение \"Шикшинская основная общеобразовательная школа  Сабинского муниципального района Республики Татарстан\""]
[30,"454006_15675483911_23","Муниципальное бюджетное общеобразовательное учреждение \"Юлбатская основная общеобразовательная школа Сабинского муниципального района Республики Татарстан\"",15675483911,"Галимуллин","Разиль","Рафилевич","м","2009-11-30",null,9,9,18,null,18,68,"участник","нет","Хазиева Альфира Рифкатовна","Муниципальное бюджетное общеобразовательное учреждение \"Юлбатская основная общеобразовательная школа Сабинского муниципального района Республики Татарстан\""]
[31,"454020_15420293433_23","Муниципальное бюджетное общеобразовательное учреждение \"Большекибячинская средняя общеобразовательная школа Сабинского муниципального района Республики Татарстан\"",15420293433,"Сагитов","Данир","Данилевич","м","2009-04-05","нет",9,9,15,null,15,68,"участник","нет","Ибушева Фирая Наиловна","Муниципальное бюджетное общеобразовательное учреждение \"Большекибячинская средняя общеобразовательная школа Сабинского муниципального района Республики Татарстан\""]
[32,451002,"Муниципальное бюджетное общеобразовательное учреждение «Центр образования «ОНИКС» для одаренных детей» Сабинского муниципального района Республики Татарстан","154-375-303 61","Гайнутдинова","Ландыш","Ирековна","ж","2009-03-23","нет",9,9,48,null,48,68,"призер","да","Хазиева Альфира Рифкатовна","Муниципальное бюджетное общеобразовательное учреждение «Центр образования «ОНИКС» для одаренных детей» Сабинского муниципального района Республики Татарстан"]
[33,"451001_15599254113_23","Муниципальное бюджетное общеобразовательное учреждение «Гимназия п.г.т. Богатые Сабы Сабинского муниципального района Республики Татарстан»",15599254113,"Юнусов","Нурбек","Ленарович","м","2009-09-12","нет",9,9,29,null,29,68,"участник","нет","Рахимова Миляуша Мансуровна","Муниципальное бюджетное общеобразовательное учреждение «Гимназия п.г.т. Богатые Сабы Сабинского муниципального района Республики Татарстан»"]
[34,"451001_15756180893_23","Муниципальное бюджетное общеобразовательное учреждение «Гимназия п.г.т. Богатые Сабы Сабинского муниципального района Республики Татарстан»",15756180893,"Латыпов","Альмир","Радикович","м","2009-02-09","нет",9,9,22,null,22,68,"участник","нет","Рахимова Миляуша Мансуровна","Муниципальное бюджетное общеобразовательное учреждение «Гимназия п.г.т. Богатые Сабы Сабинского муниципального района Республики Татарстан»"]
[35,"454016_15626308464_23","Государственное бюджетное общеобразовательное учреждение «Икшурминская кадетская школа-интернат имени Байкиева К.С.»",15626308464,"Бикмухаметов","Искандер","Ильдусович","м","2009-10-15","нет",9,9,19,null,19,68,"участник","нет","Хуснутдинова Гулия Фаридовна","Государственное бюджетное общеобразовательное учреждение «Икшурминская кадетская школа-интернат имени Байкиева К.С.»"]
[36,"454017_15488708512_23","Муниципальное бюджетное общеобразовательное учреждение \"Изминская средняя общеобразовательная школа Сабинского муниципального района Республики Татарстан\"","154-887-085 12","Усманова","Назира","Робертовна","ж","2009-06-04","нет",9,9,24,null,24,68,"участник","нет","Каримуллина Эльвира Талгатовна","Муниципальное бюджетное общеобразовательное учреждение \"Изминская средняя общеобразовательная школа Сабинского муниципального района Республики Татарстан\""]
[37,"454017_15594891219_23","Муниципальное бюджетное общеобразовательное учреждение \"Изминская средняя общеобразовательная школа Сабинского муниципального района Республики Татарстан\"","155-948-912 19","Загидуллина  ","Самира","Рузалевна","ж","2009-08-30","нет",9,9,36,null,36,68,"призер","да","Каримуллина Эльвира Талгатовна","Муниципальное бюджетное общеобразовательное учреждение \"Изминская средняя общеобразовательная школа Сабинского муниципального района Республики Татарстан\""]
[38,"452003_15698750127_23","Муниципальное бюджетное общеобразовательное учреждение\"Шеморданский лицей \"Рост\"Сабинского муниципального района Республики Татарстан\"",15698750127,"Куклина","Софья","Владиславовна","ж","2009-12-15","нет",9,9,21,null,21,68,"участник","нет","Шайхиева Жанна Ильдусовна","Муниципальное бюджетное общеобразовательное учреждение\"Шеморданский лицей \"Рост\"Сабинского муниципального района Республики Татарстан\""]
[39,"452003_15455106552_23","Муниципальное бюджетное общеобразовательное учреждение\"Шеморданский лицей \"Рост\"Сабинского муниципального района Республики Татарстан\"",15455106552,"Абсалихова","Олеся","Ильнуровна","ж","2009-04-15","нет",9,9,19,null,19,68,"участник","нет","Шайхиева Жанна Ильдусовна","Муниципальное бюджетное общеобразовательное учреждение\"Шеморданский лицей \"Рост\"Сабинского муниципального района Республики Татарстан\""]
[40,"454004_15707652580_23","Муниципальное бюджетное общеобразовательное учреждение \" Евлаштауская средняя общеобразовательная школа Сабинского муниципального района Республики Татарстан\"",15707652580,"Габдулхакова","Ильвина","Эльмировна","ж","2008-12-26","нет",10,10,21,null,{"$f":"M41","v":21},74,"участник","нет","Бектина Галина Юрьевна","Муниципальное бюджетное общеобразовательное учреждение \"Евлаштауская средняя общеобразовательная школа  Сабинского муниципального района Республики Татарстан\""]
[41,"454021_14915814077_23","Муниципальное бюджетное общеобразовательное учреждение \"Большешинарская  средняя общеобразовательная школа имени А.А. Ахунзянова  Сабинского муниципального района Республики Татарстан\"",14915814077,"Галимова","Гульяз","Фаннуровна","ж","2008-01-18","нет",10,10,29,null,{"$f":"M42","v":29},74,"участник","нет","Мухутдинова Алия Рафаэлевна","Муниципальное бюджетное общеобразовательное учреждение \"Большешинарская  средняя общеобразовательная школа имени А.А. Ахунзянова  Сабинского муниципального района Республики Татарстан\""]
[42,"454008_17335389183_23","Муниципальное бюджетное общеобразовательное учреждение \" Тимершикская средняя общеобразовательная школа Сабинского муниципального района Республики Татарстан\"",15707652883,"Ахмадиев","Ислам","Маратович","м","2008-09-07","нет",10,10,28,null,28,74,"участник","нет","Хабибуллина Эндже Анасовна","Муниципальное бюджетное общеобразовательное учреждение \" Тимершикская средняя общеобразовательная школа Сабинского муниципального района Республики Татарстан\""]
[43,"451002_15920556575_23","Муниципальное бюджетное общеобразовательное учреждение «Центр образования «ОНИКС» для одаренных детей» Сабинского муниципального района Республики Татарстан","159-205-565 75","Рахимуллин","Тимерхан","Талгатович","м","2008-10-24","нет",10,10,38,null,38,74,"победитель","нет","Хазиева Альфира Рифкатовна","Муниципальное бюджетное общеобразовательное учреждение «Центр образования «ОНИКС» для одаренных детей» Сабинского муниципального района Республики Татарстан"]
[44,"454016_15566717498_23","Государственное бюджетное общеобразовательное учреждение «Икшурминская кадетская школа-интернат имени Байкиева К.С.»","155-667-174 98","Ахмадуллина","Камиля","Ренатовна","ж","2008-03-31","нет",10,10,9,null,9,74,"участник","нет","Хуснутдинова Гулия Фаридовна","Государственное бюджетное общеобразовательное учреждение «Икшурминская кадетская школа-интернат имени Байкиева К.С.»"]
[45,"452003_16096606177_23","Муниципальное бюджетное общеобразовательное учреждение\"Шеморданский лицей \"Рост\"Сабинского муниципального района Республики Татарстан\"",16096606177,"Мирзакаримова","Линара","Шавкатовна","ж","2008-11-13","нет",10,10,18,null,18,74,"участник","нет","Шайхиева Жанна Ильдусовна","Муниципальное бюджетное общеобразовательное учреждение\"Шеморданский лицей \"Рост\"Сабинского муниципального района Республики Татарстан\""]
[46,"454004_15422832548_23","Муниципальное бюджетное общеобразовательное учреждение \"Евлаштауская средняя общеобразовательная школа  Сабинского муниципального района Республики Татарстан\"",15422832548,"Хусаенова","Дина","Рамазановна","ж","2007-09-13","нет",11,11,23,null,{"$f":"M47","v":23},76,"участник","нет","Бектина Галина Юрьевна","Муниципальное бюджетное общеобразовательное учреждение \"Евлаштауская средняя общеобразовательная школа Сабинского муниципального района Республики Татарстан\""]
[47,"454021_15087541267_23","Муниципальное бюджетное общеобразовательное учреждение \"Большешинарская  средняя общеобразовательная школа имени А.А. Ахунзянова  Сабинского муниципального района Республики Татарстан\"",15087541267,"Шагиева","Сабина","Нуруллаевна","ж","2007-02-07","нет",11,11,23,null,{"$f":"M48","v":23},76,"участник","нет","Мухутдинова Алия Рафаэлевна","Муниципальное бюджетное общеобразовательное учреждение \"Большешинарская  средняя общеобразовательная школа имени А.А. Ахунзянова  Сабинского муниципального района Республики Татарстан\""]
[48,"454015_15471724065_23","Муниципальное бюджетное общеобразовательное учреждение \"Иштуганская средняя общеобразовательная школа  Сабинского муниципального района Республики Татарстан\"",15471724065,"Князькова","Полина","Васильевна","ж","2006-12-31","нет",11,11,19,null,19,76,"участник","нет","Бектина Галина Юрьевна","Муниципальное бюджетное общеобразовательное учреждение \"Иштуганская средняя общеобразовательная школа  Сабинского муниципального района Республики Татарстан\""]
[49,"451002_15354595884_23","Муниципальное бюджетное общеобразовательное учреждение «Центр образования «ОНИКС» для одаренных детей» Сабинского муниципального района Республики Татарстан","153-545-958 84","Ибушева","Эльвина","Витальевна","ж","25.07.2007\n","нет",11,11,26,null,26,76,"участник","нет","Ибушева Фирая Наилевна","Муниципальное бюджетное общеобразовательное учреждение \"Большекибячинская средняя общеобразовательная школа Сабинского муниципального района Республики Татарстан\""]
[50,"451001_15459219585_23","Муниципальное бюджетное общеобразовательное учреждение «Гимназия п.г.т. Богатые Сабы Сабинского муниципального района Республики Татарстан»",15459219585,"Миннигулова","Алсу","Ильдаровна","ж","2007-03-16","нет",11,11,27,null,27,76,"участник","нет","Рахимова Миляуша Мансуровна","Муниципальное бюджетное общеобразовательное учреждение «Гимназия п.г.т. Богатые Сабы Сабинского муниципального района Республики Татарстан»"]
[51,"454019_15912119254_23","Муниципальное бюджетное общеобразовательное учреждение \"Верхнесиметская средняя общеобразовательная школа Сабинского муниципального района Республики Татарстан\"",15912119254,"Гарифуллина","Чулпан","Рафисовна","ж","2007-03-10","нет",11,11,26,null,26,76,"участник","нет","Халиуллина Руфия Раисовна","Муниципальное бюджетное общеобразовательное учреждение \"Верхнесиметская средняя общеобразовательная школа Сабинского муниципального района Республики Татарстан\""]
[52,"454017_16162561756_23","Муниципальное бюджетное общеобразовательное учреждение \"Изминская средняя общеобразовательная школа Сабинского муниципального района Республики Татарстан\"","161-625-617 56","Латипова ","Дилия ","Айратовна","ж","2008-01-25","нет",11,11,30,null,30,76,"участник","нет","Каримуллина Эльвира Талгатовна","Муниципальное бюджетное общеобразовательное учреждение \"Изминская средняя общеобразовательная школа Сабинского муниципального района Республики Татарстан\""]